bitfinex-derivatives/quotes_BTCF0:USTF0_20251220
["timestamp","ask_amount","ask_price","bid_price","bid_amount"]
[1766208428814,0.00016959,88424.0,88407.0,0.00568]
[1766208429008,0.15010379,88420.0,88407.0,0.00568]
[1766208429312,0.16141969,88420.0,88407.0,0.00568]
[1766208429811,0.0113159,88420.0,88407.0,0.00568]
[1766208430010,0.01148499,88424.0,88407.0,0.00568]
[1766208431015,0.01148499,88424.0,88408.0,0.00568]
[1766208431512,0.15010379,88420.0,88408.0,0.00568]
[1766208432013,0.01148499,88424.0,88408.0,0.00568]
[1766208432198,0.00016959,88424.0,88408.0,0.00568]
[1766208434313,0.00016959,88424.0,88406.0,0.00016959]
[1766208434515,0.00016959,88424.0,88407.0,0.00568]
[1766208435206,0.00016959,88424.0,88410.0,0.15010379]
[1766208437007,0.00016959,88424.0,88409.0,0.00568]
[1766208441218,0.00016959,88424.0,88406.0,0.00016959]
[1766208441420,0.00016959,88424.0,88407.0,0.00568]
[1766208445020,0.15010379,88420.0,88407.0,0.00568]
[1766208446419,0.00016959,88424.0,88407.0,0.00568]
[1766208446623,0.0113155,88423.0,88407.0,0.00568]
[1766208448827,0.0113155,88423.0,88406.0,0.00016959]
[1766208449017,0.15023979,88420.0,88407.0,0.00568]
[1766208455225,0.0113155,88423.0,88407.0,0.00568]
[1766208459028,0.00016959,88424.0,88406.0,0.00016959]
[1766208459029,0.0113159,88420.0,88406.0,0.00016959]
[1766208459220,0.15591455,88420.0,88406.0,0.00016959]
[1766208459526,0.0113163,88417.0,88406.0,0.00016959]
[1766208460619,0.15591455,88420.0,88406.0,0.00016959]
[1766208461328,0.00568,88420.0,88406.0,0.00016959]
[1766208469352,0.011316,88419.0,88406.0,0.00016959]
[1766208480862,0.00568,88420.0,88406.0,0.00016959]
[1766208482158,0.00584959,88424.0,88407.0,0.0113174]
[1766208482649,0.00584959,88424.0,88407.0,0.0169974]
[1766208483054,0.00584959,88424.0,88407.0,0.00568]
[1766208483366,0.01716489,88424.0,88407.0,0.00568]
[1766208487369,0.00584959,88424.0,88408.0,0.0113173]
[1766208501678,0.00584959,88424.0,88411.0,0.011317]
[1766208503385,0.0113134,88439.0,88414.0,0.15023455]
[1766208503584,0.02546676,88438.0,88420.0,0.15023455]
[1766208503781,0.00436,88439.0,88420.0,0.15023455]
[1766208504089,0.00436,88439.0,88415.0,0.00568]
[1766208504090,0.00436,88439.0,88421.0,0.0113156]
[1766208504284,0.00436,88439.0,88422.0,0.00568]
[1766208504486,0.00452959,88439.0,88422.0,0.00568]
[1766208508391,0.0113136,88438.0,88422.0,0.00568]
[1766208508782,0.011314,88435.0,88422.0,0.00568]
[1766208510292,0.0113144,88431.0,88422.0,0.00568]
[1766208510486,0.0113144,88431.0,88419.0,0.00568]
[1766208513192,0.011314,88435.0,88419.0,0.00568]
[1766208514294,0.0113144,88432.0,88419.0,0.00568]
[1766208516187,0.0113139,88436.0,88419.0,0.00568]
[1766208516590,0.00452959,88439.0,88419.0,0.00568]
[1766208517391,0.00452959,88439.0,88420.0,0.15017853]
[1766208519287,0.00452959,88439.0,88424.0,0.0113153]
[1766208519695,0.00452959,88439.0,88429.0,0.15017853]
[1766208521502,0.00016959,88439.0,88429.0,0.15017853]
[1766208522392,0.00568,88446.0,88430.0,0.0113146]
[1766208522593,0.00568,88449.0,88430.0,0.0113146]
[1766208525303,0.00568,88449.0,88433.0,0.0113141]
[1766208526286,0.00568,88449.0,88429.0,0.15017853]
[1766208526797,0.00528,88458.0,88427.0,0.00568]
[1766208527097,0.00528,88458.0,88430.0,0.15017853]
[1766208527602,0.15017853,88450.0,88430.0,0.15017853]
[1766208527897,0.0113118,88452.0,88431.0,0.0113144]
[1766208529898,0.0113118,88452.0,88430.0,0.15017853]
[1766208530500,0.15017853,88450.0,88430.0,0.15017853]
[1766208535309,0.0113121,88449.0,88430.0,0.15017853]
[1766208536301,0.0113121,88449.0,88431.0,0.00568]
[1766208546028,0.15017853,88450.0,88431.0,0.00568]
[1766208548724,0.0113122,88449.0,88431.0,0.00568]
[1766208549628,0.16149053,88450.0,88431.0,0.00568]
[1766208550322,0.011312,88450.0,88431.0,0.00568]
[1766208550525,0.16149053,88450.0,88431.0,0.00568]
[1766208551426,0.011312,88450.0,88431.0,0.00568]
[1766208551626,0.16149053,88450.0,88431.0,0.00568]
[1766208552326,0.00568,88451.0,88431.0,0.00568]
[1766208552327,0.00568,88451.0,88440.0,0.14010853]
[1766208552512,0.00568,88451.0,88432.0,0.0113142]
[1766208552717,0.15017853,88450.0,88431.0,0.00568]
[1766208553023,0.0113124,88447.0,88431.0,0.00568]
[1766208558434,0.15017853,88450.0,88431.0,0.00568]
[1766208560634,0.0113122,88449.0,88431.0,0.00568]
[1766208560932,0.15017853,88450.0,88431.0,0.00568]
[1766208562631,0.15017853,88450.0,88432.0,0.0113142]
[1766208568139,0.15017853,88450.0,88430.0,0.15017853]
[1766208568337,0.15017853,88450.0,88433.0,0.00568]
[1766208569136,0.15017853,88450.0,88434.0,0.00568]
[1766208570341,0.0113124,88447.0,88434.0,0.00568]
[1766208570541,0.0169924,88447.0,88434.0,0.00568]
[1766208570743,0.0113128,88444.0,88425.0,0.00016959]
[1766208570944,0.0113126,88446.0,88426.0,0.00568]
[1766208571542,0.00568,88447.0,88427.0,0.0113149]
[1766208571742,0.0169924,88447.0,88427.0,0.0113149]
[1766208576352,0.00568,88447.0,88427.0,0.0113149]
[1766208578754,0.0113125,88446.0,88427.0,0.0113149]
[1766208579662,0.0113125,88446.0,88425.0,0.00016959]
[1766208579857,0.0113125,88446.0,88426.0,0.016995]
[1766208582862,0.00568,88447.0,88426.0,0.00568]
[1766208583063,0.00568,88447.0,88427.0,0.0113149]
[1766208584264,0.0113125,88446.0,88427.0,0.0113149]
[1766208584565,0.00568,88447.0,88427.0,0.0113149]
[1766208587754,0.0169924,88447.0,88428.0,0.00568]
[1766208588468,0.00568,88447.0,88429.0,0.0113146]
[1766208591056,0.00568,88447.0,88428.0,0.00568]
[1766208593772,0.0113126,88446.0,88428.0,0.00568]
[1766208594164,0.0113125,88446.0,88428.0,0.00568]
[1766208596065,0.0113129,88443.0,88428.0,0.00568]
[1766208596958,0.00568,88447.0,88429.0,0.00568]
[1766208597975,0.0169924,88447.0,88429.0,0.00568]
[1766208599566,0.0113128,88444.0,88429.0,0.00568]
[1766208601468,0.0113125,88446.0,88429.0,0.00568]
[1766208601973,0.0113125,88446.0,88425.0,0.00016959]
[1766208605766,0.0113129,88443.0,88425.0,0.00016959]
[1766208611386,0.00568,88447.0,88425.0,0.00016959]
[1766208612277,0.0113126,88446.0,88425.0,0.00016959]
[1766208613786,0.0113129,88443.0,88425.0,0.00016959]
[1766208618694,0.0113128,88444.0,88426.0,0.0113151]
[1766208619084,0.0113128,88444.0,88425.0,0.00016959]
[1766208619286,0.00568,88447.0,88425.0,0.00016959]
[1766208619487,0.0113134,88439.0,88425.0,0.00016959]
[1766208619691,0.15016022,88435.0,88404.0,0.0113178]
[1766208619884,0.0113158,88420.0,88405.0,0.00372]
[1766208620383,0.0113154,88424.0,88405.0,0.00372]
[1766208620578,0.0113154,88424.0,88406.0,0.00016959]
[1766208620794,0.00016959,88423.0,88407.0,0.0113174]
[1766208621403,0.00016959,88423.0,88400.0,0.15016022]
[1766208621404,0.0113169,88412.0,88391.0,0.02256052]
[1766208621698,0.15016022,88420.0,88394.0,0.0113191]
[1766208621699,0.0113164,88416.0,88394.0,0.0113191]
[1766208622407,0.0113164,88416.0,88396.0,0.00016959]
[1766208623409,0.00568,88418.0,88398.0,0.0113186]
[1766208623605,0.0169961,88418.0,88398.0,0.0113186]
[1766208624110,0.0169961,88418.0,88396.0,0.00016959]
[1766208626009,0.0169961,88418.0,88397.0,0.0113188]
[1766208627309,0.0169961,88418.0,88398.0,0.00568]
[1766208632816,0.00568,88418.0,88398.0,0.00568]
[1766208633312,0.0113163,88416.0,88396.0,0.00016959]
[1766208634408,0.00568,88418.0,88397.0,0.0113187]
[1766208636920,0.00568,88418.0,88398.0,0.00568]
[1766208638520,0.0169962,88418.0,88398.0,0.00568]
[1766208640118,0.00568,88418.0,88398.0,0.00568]
[1766208641220,0.0169961,88418.0,88398.0,0.00568]
[1766208643318,0.0113165,88415.0,88398.0,0.00568]
[1766208657432,0.0113169,88412.0,88398.0,0.00568]
[1766208660439,0.00568,88418.0,88401.0,0.0113183]
[1766208661535,0.00568,88418.0,88400.0,0.15026381]
[1766208662231,0.00568,88418.0,88401.0,0.0113183]
[1766208662734,0.00568,88418.0,88400.0,0.15026381]
[1766208662939,0.00568,88418.0,88398.0,0.00568]
[1766208665636,0.00568,88418.0,88400.0,0.0113184]
[1766208666533,0.0113163,88417.0,88400.0,0.15026381]
[1766208669942,0.00568,88418.0,88401.0,0.0113182]
[1766208670245,0.00568,88418.0,88400.0,0.15026381]
[1766208670246,0.00568,88418.0,88408.0,0.16158111]
[1766208670445,0.00016959,88423.0,88408.0,0.16158111]
[1766208670645,0.00568,88422.0,88410.0,0.15026381]
[1766208671143,0.00016959,88423.0,88411.0,0.00568]
[1766208672540,0.00568,88430.0,88411.0,0.0169969]
[1766208672843,0.0113138,88436.0,88420.0,0.15026381]
[1766208673038,0.00568,88434.0,88420.0,0.15594381]
[1766208674543,0.00568,88434.0,88420.0,0.00568]
[1766208674845,0.00568,88434.0,88420.0,0.15594381]
[1766208675243,0.00568,88434.0,88421.0,0.0113157]
[1766208675445,0.00016959,88436.0,88421.0,0.0113157]
[1766208675742,0.00568,88442.0,88420.0,0.15594381]
[1766208676243,0.0169931,88442.0,88420.0,0.16725961]
[1766208676445,0.15026381,88440.0,88420.0,0.16725961]
[1766208678748,0.15026381,88440.0,88423.0,0.0113154]
[1766208678946,0.00568,88442.0,88424.0,0.00568]
[1766208681950,0.00568,88442.0,88430.0,0.15026381]
[1766208682649,0.00568,88442.0,88429.0,0.00568]
[1766208688658,0.016993,88442.0,88429.0,0.00568]
[1766208688954,0.15026381,88440.0,88429.0,0.00568]
[1766208689155,0.016993,88442.0,88429.0,0.00568]
[1766208692462,0.00568,88442.0,88429.0,0.00568]
[1766208695164,0.00568,88442.0,88423.0,0.0113154]
[1766208695464,0.00568,88442.0,88424.0,0.00568]
[1766208699870,0.00568,88442.0,88425.0,0.0113151]
[1766208700363,0.00568,88442.0,88430.0,0.15026381]
[1766208701464,0.00568,88442.0,88427.0,0.0113149]
[1766208703156,0.00568,88442.0,88424.0,0.00568]
[1766208703371,0.00568,88442.0,88424.0,0.0169952]
[1766208703566,0.00568,88442.0,88427.0,0.0113149]
[1766208709084,0.00568,88442.0,88425.0,0.0113152]
[1766208709877,0.00568,88442.0,88424.0,0.00568]
[1766208710977,0.00568,88442.0,88424.0,0.0169953]
[1766208717775,0.00568,88442.0,88427.0,0.0113149]
[1766208718176,0.00568,88442.0,88427.0,0.0113148]
[1766208728588,0.00568,88442.0,88424.0,0.00568]
[1766208729380,0.00568,88442.0,88428.0,0.0113147]
[1766208732687,0.00568,88442.0,88424.0,0.00568]
[1766208732892,0.00424,88450.0,88424.0,0.00568]
[1766208733189,0.02548704,88449.0,88424.0,0.00568]
[1766208733389,0.02548704,88448.0,88424.0,0.00568]
[1766208733587,0.0113118,88452.0,88432.0,0.0113142]
[1766208733792,0.00352,88457.0,88439.0,0.0113133]
[1766208733993,0.00296,88456.0,88439.0,0.0113133]
[1766208736394,0.00296,88456.0,88443.0,0.0113128]
[1766208736592,0.0113103,88464.0,88443.0,0.0113128]
[1766208736786,0.00568,88463.0,88446.0,0.0113125]
[1766208739097,0.00568,88463.0,88440.0,0.15015582]
[1766208739795,0.00568,88463.0,88445.0,0.0113125]
[1766208740897,0.00568,88463.0,88441.0,0.0113131]
[1766208741099,0.00568,88463.0,88444.0,0.0113127]
[1766208741288,0.0169904,88463.0,88444.0,0.00568]
[1766208745904,0.00568,88463.0,88444.0,0.00568]
[1766208746306,0.00568,88463.0,88444.0,0.0169927]
[1766208750201,0.00568,88463.0,88447.0,0.0113123]
[1766208750396,0.00568,88463.0,88444.0,0.00568]
[1766208750597,0.00568,88463.0,88445.0,0.0113125]
[1766208752511,1.44256,88479.0,88450.0,0.16146782]
[1766208752708,0.03104694,88478.0,88456.0,0.00016959]
[1766208753013,0.02536694,88477.0,88456.0,0.00016959]
[1766208753210,0.02536694,88476.0,88456.0,0.00016959]
[1766208753399,0.02536694,88475.0,88456.0,0.00016959]
[1766208753600,0.00568,88478.0,88456.0,0.00016959]
[1766208753800,0.02536494,88477.0,88456.0,0.00016959]
[1766208754013,0.02536494,88476.0,88456.0,0.00016959]
[1766208754310,0.0113092,88473.0,88456.0,0.00016959]
[1766208755609,0.00568,88478.0,88456.0,0.00016959]
[1766208755610,0.0113087,88477.0,88456.0,0.00016959]
[1766208755912,0.02532028,88476.0,88456.0,0.01148079]
[1766208756115,0.0113087,88477.0,88456.0,0.01148079]
[1766208757217,0.02532175,88476.0,88456.0,0.01148079]
[1766208757515,0.0113087,88477.0,88456.0,0.01148079]
[1766208758315,0.02532185,88476.0,88456.0,0.01148079]
[1766208758519,0.0113087,88477.0,88456.0,0.01148079]
[1766208759119,0.02532185,88476.0,88456.0,0.00016959]
[1766208759415,0.00568,88478.0,88456.0,0.00016959]
[1766208760217,0.0113091,88473.0,88456.0,0.00016959]
[1766208760410,0.00568,88472.0,88456.0,0.00016959]
[1766208761415,0.00568,88472.0,88460.0,0.15005549]
[1766208763918,0.00568,88472.0,88459.0,0.00568]
[1766208764120,0.00568,88472.0,88460.0,0.15005549]
[1766208767122,0.00568,88472.0,88459.0,0.00568]
[1766208767319,0.00568,88472.0,88460.0,0.15005549]
[1766208770337,0.15005549,88480.0,88460.0,0.15005549]
[1766208770338,0.15005549,88510.0,88476.0,0.0113086]
[1766208770621,0.15005549,88500.0,88480.0,0.15005549]
[1766208770828,0.15005549,88500.0,88481.0,0.00352]
[1766208773132,0.0113061,88497.0,88481.0,0.00352]
[1766208773933,0.15005549,88500.0,88481.0,0.00352]
[1766208776533,0.00568,88506.0,88481.0,0.00352]
[1766208776833,0.00568,88506.0,88488.0,0.15005549]
[1766208777031,0.00568,88506.0,88489.0,0.00568]
[1766208777231,0.00568,88506.0,88489.0,0.016987]
[1766208777434,0.00568,88506.0,88490.0,0.15005549]
[1766208781334,0.00564,88511.0,88490.0,0.15005549]
[1766208781629,0.15005549,88510.0,88490.0,0.15005549]
[1766208784443,0.0113033,88519.0,88500.0,0.15005549]
[1766208784631,0.00564,88518.0,88501.0,0.0058095]
[1766208785234,0.16135869,88520.0,88501.0,0.0058095]
[1766208785438,0.0113039,88514.0,88501.0,0.0058095]
[1766208786542,0.00564,88522.0,88501.0,0.0058095]
[1766208788238,0.0113034,88518.0,88501.0,0.0001695]
[1766208788743,0.00564,88522.0,88508.0,0.14989589]
[1766208788943,0.00564,88522.0,88509.0,0.00564]
[1766208789246,0.00564,88522.0,88510.0,0.14989589]
[1766208790033,0.00564,88522.0,88511.0,0.00564]
[1766208791239,1.44192,88536.0,88511.0,0.00564]
[1766208791434,0.1834231,88560.0,88511.0,0.00564]
[1766208791435,0.00564,88537.0,88520.0,0.14989589]
[1766208791745,0.00564,88537.0,88521.0,0.00564]
[1766208792745,0.00564,88549.0,88527.0,0.14989589]
[1766208792942,0.00564,88549.0,88528.0,0.00564]
[1766208793143,0.0113001,88544.0,88528.0,0.00564]
[1766208795041,0.0113001,88544.0,88530.0,0.14989589]
[1766208795239,0.0113001,88544.0,88528.0,0.00564]
[1766208795539,0.00564,88549.0,88528.0,0.00564]
[1766208796646,0.0113005,88541.0,88530.0,0.14989589]
[1766208796847,0.0113006,88540.0,88528.0,9e-08]
[1766208797645,0.0113007,88539.0,88528.0,9e-08]
[1766208797949,0.14989589,88540.0,88520.0,0.15006539]
[1766208798135,0.14989589,88540.0,88521.0,0.00564]
[1766208798339,0.0113012,88535.0,88521.0,0.00564]
[1766208799141,0.14989589,88540.0,88521.0,0.00564]
[1766208799341,0.0113007,88539.0,88521.0,0.00564]
[1766208800545,0.0113018,88530.0,88520.0,0.0001695]
[1766208800751,0.0113026,88524.0,88510.0,0.14989589]
[1766208801046,0.0113026,88524.0,88502.0,0.0113052]
[1766208801254,0.011302,88529.0,88510.0,0.14989589]
[1766208801439,0.011302,88529.0,88511.0,0.00564]
[1766208801638,0.15553589,88540.0,88511.0,0.00564]
[1766208801639,0.0113021,88528.0,88511.0,0.00564]
[1766208801953,0.0113021,88528.0,88511.0,0.0058095]
[1766208803350,0.0113021,88528.0,88511.0,0.0001695]
[1766208803544,0.0113021,88528.0,88512.0,0.00564]
[1766208804348,0.00016918,88529.0,88512.0,0.00564]
[1766208808253,0.00016918,88529.0,88511.0,0.0001695]
[1766208808453,0.00016918,88529.0,88512.0,0.00564]
[1766208808652,0.00016918,88529.0,88513.0,0.00564]
[1766208809555,0.01147118,88529.0,88513.0,0.00564]
[1766208810446,0.00647118,88529.0,88513.0,0.00564]
[1766208810859,0.0113023,88526.0,88513.0,0.00564]
[1766208811545,0.0113023,88526.0,88514.0,0.00564]
[1766208812658,0.00564,88529.0,88514.0,0.00564]
[1766208812957,0.0113021,88528.0,88514.0,0.00564]
[1766208813348,0.00564,88529.0,88514.0,0.00564]
[1766208814045,0.0113025,88525.0,88514.0,0.00564]
[1766208814244,0.0113025,88525.0,88501.0,0.06071778]
[1766208814245,0.30543178,88524.0,88492.0,0.06082316]
[1766208814443,0.0113061,88496.0,88487.0,8e-08]
[1766208814643,0.0169464,88495.0,88477.0,0.00564]
[1766208814848,0.14989589,88490.0,88470.0,0.15557589]
[1766208815049,0.00568,88489.0,88470.0,0.15557589]
[1766208815350,0.0113073,88487.0,88470.0,0.15557589]
[1766208815550,0.00010538,88486.0,88470.0,0.15557589]
[1766208816252,0.00010538,88486.0,88474.0,0.0113089]
[1766208816458,0.00010538,88486.0,88477.0,0.0113084]
[1766208816759,0.16120029,88510.0,88487.0,0.0113073]
[1766208817055,0.0113032,88520.0,88490.0,0.14989589]
[1766208817258,0.0113035,88517.0,88494.0,0.0113063]
[1766208817649,0.0114734,88514.0,88497.0,0.0001695]
[1766208817850,0.0113041,88512.0,88497.0,0.0001695]
[1766208818049,0.14989589,88510.0,88497.0,0.0001695]
[1766208819157,0.00568,88509.0,88497.0,0.0001695]
[1766208822656,0.00568,88508.0,88498.0,0.0113058]
[1766208822850,0.0113015,88533.0,88507.0,0.0113047]
[1766208823048,0.0113017,88531.0,88510.0,0.14993196]
[1766208823245,0.0113017,88531.0,88503.0,0.00568]
[1766208823246,0.0113021,88528.0,88503.0,0.0169852]
[1766208823954,0.0113021,88528.0,88507.0,0.0001695]
[1766208824360,0.00284,88532.0,88507.0,0.0001695]
[1766208824562,0.14993196,88530.0,88507.0,0.0001695]
[1766208824758,0.14993196,88530.0,88503.0,0.00568]
[1766208824759,0.0113038,88515.0,88503.0,0.00568]
[1766208824961,0.00568,88514.0,88503.0,0.00568]
[1766208827068,0.00568,88514.0,88500.0,0.0001695]
[1766208828958,0.0169839,88514.0,88500.0,0.0001695]
[1766208829163,0.0113045,88509.0,88488.0,0.00568]
[1766208830161,0.14993196,88510.0,88488.0,0.00568]
[1766208830349,0.14993196,88510.0,88490.0,0.0001695]
[1766208830555,0.0113047,88508.0,88490.0,0.0001695]
[1766208830854,0.00568,88507.0,88490.0,0.0001695]
[1766208832073,0.14993196,88500.0,88478.0,0.0113084]
[1766208832256,0.00568,88499.0,88471.0,1.44716]
[1766208832456,0.0113059,88498.0,88471.0,1.44716]
[1766208833157,0.0001695,88493.0,88476.0,0.0001695]
[1766208833358,0.00568,88492.0,88476.0,0.0001695]
[1766208834560,0.00568,88492.0,88476.0,0.0114782]
[1766208840682,0.00568,88492.0,88479.0,0.0113082]
[1766208840883,0.00568,88492.0,88476.0,0.0001695]
[1766208841176,0.00568,88492.0,88477.0,0.0113085]
[1766208842766,0.00568,88492.0,88476.0,0.0001695]
[1766208843874,0.00568,88491.0,88476.0,0.0114781]
[1766208844276,0.0113041,88512.0,88487.0,0.0113072]
[1766208844472,0.00352,88511.0,88490.0,0.14993196]
[1766208844672,0.00352,88511.0,88487.0,0.0113072]
[1766208845073,0.0159443,88510.0,88487.0,0.0113072]
[1766208845274,0.0001695,88507.0,88490.0,0.0001695]
[1766208846083,0.0001695,88507.0,88487.0,0.0113072]
[1766208846084,0.0113059,88498.0,88481.0,0.00352]
[1766208846286,0.00568,88497.0,88481.0,0.00352]
[1766208846673,0.0113065,88493.0,88471.0,0.06071778]
[1766208846874,0.0113065,88493.0,88470.0,0.07770708]
[1766208847180,0.0113065,88493.0,88473.0,0.0001695]
[1766208849883,0.0169861,88497.0,88473.0,0.0114785]
[1766208850277,0.00568,88497.0,88473.0,0.0001695]
[1766208850785,0.00176,88496.0,88480.0,0.14993196]
[1766208851283,0.00176,88496.0,88477.0,0.00568]
[1766208851483,0.0113063,88495.0,88477.0,0.00568]
[1766208853180,0.00176,88496.0,88477.0,0.00568]
[1766208858175,0.0113063,88495.0,88477.0,0.00568]
[1766208858376,0.0113075,88486.0,88474.0,0.06071778]
[1766208858582,0.0169875,88486.0,88473.0,0.0001695]
[1766208859486,0.0169875,88486.0,88471.0,0.00568]
[1766208859790,0.00568,88486.0,88471.0,0.00568]
[1766208860786,0.00568,88486.0,88471.0,0.06639778]
[1766208861290,0.00568,88486.0,88471.0,0.06071778]
[1766208861481,0.00568,88486.0,88472.0,0.06071778]
[1766208862990,0.00568,88486.0,88473.0,0.06071778]
[1766208863291,0.00568,88486.0,88472.0,0.06071778]
[1766208863784,0.00568,88486.0,88473.0,0.06071778]
[1766208863986,0.00568,88486.0,88472.0,0.06071778]
[1766208865690,0.00568,88486.0,88471.0,0.06071778]
[1766208866085,0.00568,88486.0,88472.0,0.06071778]
[1766208867779,0.00568,88486.0,88473.0,0.011309]
[1766208867979,0.00568,88486.0,88473.0,0.07202678]
[1766208868185,0.0001695,88489.0,88473.0,0.07202678]
[1766208868385,0.00156,88488.0,88473.0,0.011309]
[1766208871581,0.00156,88488.0,88472.0,0.06071778]
[1766208871787,0.0128672,88488.0,88470.0,0.0001695]
[1766208875194,0.0113072,88488.0,88470.0,0.0001695]
[1766208875406,0.0113076,88485.0,88470.0,0.0001695]
[1766208876994,0.00568,88487.0,88470.0,0.0001695]
[1766208877599,0.0113074,88486.0,88470.0,0.0001695]
[1766208878387,0.00568,88487.0,88470.0,0.0001695]
[1766208881005,0.0113072,88488.0,88470.0,0.0001695]
[1766208881511,0.0113076,88485.0,88470.0,0.0001695]
[1766208882904,0.0113074,88486.0,88470.0,0.0001695]
[1766208883498,0.0113074,88486.0,88470.0,0.15018659]
[1766208884106,0.005,88487.0,88470.0,0.15018659]
[1766208884794,0.0163073,88487.0,88470.0,0.15018659]
[1766208884990,0.0113077,88484.0,88470.0,0.15018659]
[1766208885400,0.0113077,88484.0,88470.0,0.0001695]
[1766208890812,0.0113077,88484.0,88470.0,0.15018659]
[1766208892014,0.005,88487.0,88470.0,0.15018659]
[1766208892205,0.0113075,88486.0,88470.0,0.15018659]
[1766208893414,0.005,88487.0,88470.0,0.15018659]
[1766208894216,0.005,88487.0,88470.0,0.0001695]
[1766208894416,0.005,88487.0,88470.0,0.15018659]
[1766208897221,0.005,88487.0,88470.0,0.16149599]
[1766208900332,0.0163073,88487.0,88470.0,0.15018659]
[1766208900631,0.0113074,88486.0,88470.0,0.15018659]
[1766208901030,0.005,88487.0,88470.0,0.15018659]
[1766208901221,0.005,88487.0,88470.0,0.21090437]
[1766208901835,0.005,88487.0,88471.0,0.0113093]
[1766208902025,0.005,88487.0,88470.0,0.15018659]
[1766208902422,0.005,88487.0,88470.0,0.16149599]
[1766208903637,0.00568,88486.0,88470.0,0.16149599]
[1766208903828,0.00568,88486.0,88470.0,0.15018659]
[1766208907541,0.00568,88486.0,88471.0,0.0113092]
[1766208908040,0.0001695,88489.0,88470.0,0.15018659]
[1766208908344,0.0001695,88489.0,88479.0,0.15001709]
[1766208908540,0.00568,88488.0,88470.0,0.21090437]
[1766208908844,0.00396,88487.0,88471.0,0.00568]
[1766208909644,0.0001695,88489.0,88471.0,0.00568]
[1766208910039,0.0012,88488.0,88470.0,0.15001709]
[1766208911149,0.0012,88488.0,88470.0,0.15018659]
[1766208911840,0.0012,88488.0,88471.0,0.0113092]
[1766208912547,0.0001695,88489.0,88471.0,0.0113092]
[1766208912735,0.00568,88488.0,88471.0,0.0113092]
[1766208914355,0.00568,88488.0,88475.0,0.0113087]
[1766208914645,0.00568,88488.0,88471.0,0.0113092]
[1766208914849,0.00568,88488.0,88474.0,0.0113089]
[1766208915147,0.0001695,88489.0,88474.0,0.0113089]
[1766208915346,0.00136,88488.0,88474.0,0.0113089]
[1766208915646,0.00136,88488.0,88470.0,0.16149599]
[1766208915844,0.00136,88488.0,88470.0,0.15018659]
[1766208916245,0.0015295,88488.0,88470.0,0.15018659]
[1766208917247,0.0015295,88488.0,88474.0,0.0113089]
[1766208917641,0.0001695,88488.0,88474.0,0.0113089]
[1766208917843,0.00568,88487.0,88474.0,0.0113089]
[1766208918145,0.00568,88486.0,88474.0,0.0113089]
[1766208918543,0.0113057,88499.0,88477.0,0.0113085]
[1766208918845,0.011306,88497.0,88480.0,0.15001709]
[1766208919347,0.0113051,88504.0,88480.0,0.16132509]
[1766208919550,0.0113033,88519.0,88480.0,0.16132509]
[1766208919551,0.011475,88501.0,88480.0,0.16132509]
[1766208919742,0.15469709,88500.0,88482.0,0.0001695]
[1766208920760,0.15001709,88500.0,88483.0,0.0113077]
[1766208920949,0.00568,88499.0,88483.0,0.0113077]
[1766208923153,0.0001695,88501.0,88486.0,0.0113073]
[1766208923358,0.00568,88500.0,88489.0,0.15001709]
[1766208924046,0.00568,88500.0,88490.0,0.14994213]
[1766208925252,0.00568,88500.0,88491.0,0.0113068]
[1766208925450,0.00568,88500.0,88490.0,0.14994213]
[1766208927151,0.0001695,88504.0,88490.0,0.16124893]
[1766208927351,0.00568,88503.0,88490.0,0.14994213]
[1766208927544,0.0113034,88518.0,88494.0,0.0113063]
[1766208927938,0.0113034,88518.0,88493.0,0.15562213]
[1766208927939,0.00568,88517.0,88500.0,0.14994213]
[1766208928245,0.0058495,88517.0,88500.0,0.15011163]
[1766208928447,0.0113039,88514.0,88500.0,0.0001695]
[1766208928642,0.0113043,88511.0,88500.0,0.0001695]
[1766208928948,0.0113047,88507.0,88500.0,1e-07]
[1766208929143,0.00568,88506.0,88500.0,1e-07]
[1766208931344,0.0113062,88496.0,88483.0,0.00072]
[1766208931544,0.00568,88498.0,88483.0,0.00072]
[1766208932050,0.011306,88497.0,88483.0,0.00072]
[1766208932551,0.00568,88498.0,88483.0,0.00072]
[1766208934248,0.14994213,88540.0,88492.0,0.0113065]
[1766208934451,0.0113013,88534.0,88510.0,0.14994213]
[1766208934653,0.0113008,88538.0,88511.0,0.0113042]
[1766208935151,0.0001695,88533.0,88516.0,0.0001695]
[1766208935350,0.14994213,88530.0,88516.0,0.0001695]
[1766208935658,0.16124393,88530.0,88516.0,0.0001695]
[1766208936651,0.14994213,88530.0,88516.0,0.0001695]
[1766208943458,0.00568,88532.0,88516.0,0.0001695]
[1766208943851,0.00568,88532.0,88517.0,0.0113034]
[1766208944641,0.0001695,88533.0,88516.0,0.0001695]
[1766208944843,0.00568,88532.0,88516.0,0.0001695]
[1766208945059,0.0001695,88533.0,88520.0,0.14987276]
[1766208945357,0.00568,88531.0,88518.0,0.0113032]
[1766208946960,0.00568,88531.0,88516.0,0.0001695]
[1766208947257,0.00568,88531.0,88517.0,0.0113034]
[1766208948157,0.00568,88531.0,88516.0,0.0001695]
[1766208948857,0.0113018,88530.0,88516.0,0.0001695]
[1766208950360,0.00568,88531.0,88516.0,0.0001695]
[1766208953167,0.14987276,88530.0,88508.0,0.00228]
[1766208954156,0.0113022,88527.0,88510.0,0.0001695]
[1766208955558,0.14987276,88520.0,88502.0,0.00568]
[1766208955759,0.0113035,88517.0,88501.0,0.00568]
[1766208956561,0.0001695,88518.0,88501.0,0.00568]
[1766208957463,0.0001695,88518.0,88502.0,0.0113053]
[1766208958463,0.0114728,88518.0,88501.0,0.00568]
[1766208958762,0.0113038,88515.0,88501.0,0.00568]
[1766208959651,0.0001695,88518.0,88501.0,0.00568]
[1766208962260,0.0001695,88518.0,88502.0,0.0113053]
[1766208963072,0.0001695,88518.0,88505.0,0.0113049]
[1766208964762,0.0001695,88518.0,88501.0,0.0169854]
[1766208965066,0.0001695,88518.0,88502.0,0.0113053]
[1766208965768,0.0001695,88518.0,88505.0,0.0113049]
[1766208966663,1e-07,88518.0,88501.0,0.00568]
[1766208966872,0.00072,88520.0,88511.0,0.0113041]
[1766208967268,0.00072,88520.0,88507.0,0.0113046]
[1766208968068,0.00072,88520.0,88502.0,0.0113053]
[1766208969857,0.00072,88520.0,88506.0,0.0113047]
[1766208970062,0.00072,88520.0,88502.0,0.0113052]
[1766208970466,0.00072,88520.0,88505.0,0.0113049]
[1766208971872,0.00072,88520.0,88501.0,0.0169854]
[1766208973071,0.15059276,88520.0,88501.0,0.00568]